bitfinex-derivatives/quotes_SOLF0:USTF0_20250819
["timestamp","ask_amount","ask_price","bid_price","bid_amount"]
[1755630850015,4.0067286,176.24,176.16,5.6768]
[1755630850213,6.13280955,176.3,176.15,7.66293444]
[1755630850214,3.18,176.3,176.17,1.18]
[1755630850413,4.00839039,176.29,176.17,1.18]
[1755630850622,4.00839039,176.28,176.18,5.6762]
[1755630850815,0.98773842,176.31,176.17,1.18]
[1755630850816,3.18,176.26,176.17,1.18]
[1755630851112,4.00839039,176.25,176.17,1.18]
[1755630851309,4.00844323,176.24,176.17,1.18]
[1755630851514,3.18,176.26,176.17,1.18]
[1755630851714,4.00851511,176.25,176.17,1.18]
[1755630851916,4.00851511,176.24,176.17,1.18]
[1755630852116,3.18,176.26,176.17,1.18]
[1755630852317,4.00963569,176.25,176.17,1.18]
[1755630852517,4.00963569,176.24,176.17,1.18]
[1755630852707,3.18,176.26,176.17,1.18]
[1755630852911,4.00978337,176.25,176.17,1.18]
[1755630853111,3.18,176.26,176.17,1.18]
[1755630853508,3.18,176.26,176.17,6.8563]
[1755630853712,4.01060617,176.25,176.18,1.18]
[1755630853913,3.18,176.26,176.18,1.18]
[1755630854111,0.98773842,176.31,176.19,5.6757]
[1755630854319,7.19282092,176.3,176.2,1.18]
[1755630854625,4.01282092,176.29,176.2,1.18]
[1755630854917,7.19282092,176.28,176.2,1.18]
[1755630855121,4.01282092,176.27,176.2,1.18]
[1755630855314,3.18,176.28,176.2,1.18]
[1755630855815,4.0107389,176.27,176.2,1.18]
[1755630856120,3.18,176.28,176.2,1.18]
[1755630856321,4.01101304,176.27,176.2,1.18]
[1755630856620,3.18,176.28,176.2,1.18]
[1755630856822,4.01096101,176.27,176.2,1.18]
[1755630857018,3.18,176.28,176.2,1.18]
[1755630857215,4.01113046,176.27,176.2,1.18]
[1755630857419,3.18,176.28,176.2,1.18]
[1755630857615,4.0106669,176.27,176.2,1.18]
[1755630857913,3.18,176.28,176.2,1.18]
[1755630858123,4.01066894,176.27,176.2,1.18]
[1755630858419,3.18,176.28,176.2,1.18]
[1755630858615,4.01041058,176.27,176.2,1.18]
[1755630858817,3.18,176.28,176.2,1.18]
[1755630859016,4.01156019,176.27,176.2,1.18]
[1755630859217,3.18,176.28,176.2,1.18]
[1755630859422,4.01135401,176.27,176.2,1.18]
[1755630859617,3.18,176.28,176.2,1.18]
[1755630859819,4.01131065,176.27,176.2,1.18]
[1755630860018,3.18,176.28,176.2,1.18]
[1755630860214,3.18,176.26,176.16,1.18]
[1755630860418,3.18,176.24,176.16,1.18]
[1755630860919,3.18,176.27,176.16,1.18]
[1755630861122,4.01128592,176.26,176.16,1.18]
[1755630861328,4.01128592,176.25,176.18,1.18]
[1755630861520,3.18,176.27,176.18,1.18]
[1755630861715,4.0225356,176.26,176.18,1.18]
[1755630861916,3.18,176.25,176.15,1.18]
[1755630862225,3.18,176.23,176.15,1.18]
[1755630864419,3.18,176.23,176.17,5.6765]
[1755630864615,3.18,176.23,176.15,1.18]
[1755630864920,3.18,176.23,176.16,5.6766]
[1755630865320,3.18,176.23,176.15,1.18]
[1755630866829,3.18,176.23,176.16,5.6767]
[1755630868328,3.18,176.23,176.17,4.91971654]
[1755630869425,4.04588249,176.22,176.14,4.91971654]
[1755630869626,2.9,176.2,176.11,6.09971654]
[1755630870330,2.9,176.2,176.12,5.6778]
[1755630870527,4.91971654,176.27,176.14,4.91971654]
[1755630870830,2.9,176.24,176.14,6.09971654]
[1755630871035,4.04570288,176.23,176.14,11.77701654]
[1755630871322,4.04570288,176.23,176.14,6.09971654]
[1755630871523,4.04570288,176.23,176.14,11.77701654]
[1755630872426,4.04570288,176.23,176.15,1.18]
[1755630872922,2.9,176.24,176.16,5.6766]
[1755630873123,4.04621692,176.23,176.16,5.6766]
[1755630873317,2.9,176.24,176.16,5.6766]
[1755630873528,4.0462106,176.23,176.16,5.6766]
[1755630873824,2.9,176.24,176.16,5.6766]
[1755630874019,4.04690749,176.23,176.16,5.6766]
[1755630874222,2.9,176.24,176.16,5.6766]
[1755630874430,4.04697601,176.23,176.16,5.6766]
[1755630874631,2.9,176.27,176.18,1.18]
[1755630874825,2.9,176.25,176.18,1.18]
[1755630875026,2.9,176.25,176.17,4.91971654]
[1755630875329,2.9,176.25,176.18,1.18]
[1755630877928,2.9,176.25,176.17,4.91971654]
[1755630878134,4.04917263,176.24,176.17,4.91971654]
[1755630878336,6.94917263,176.23,176.17,4.91971654]
[1755630878628,2.9,176.23,176.17,4.91971654]
[1755630880036,2.9,176.23,176.15,1.18]
[1755630880239,2.9,176.21,176.11,1.18]
[1755630880437,2.9,176.19,176.11,1.18]
[1755630880645,2.9,176.17,176.1,381.5]
[1755630881339,2.9,176.17,176.08,4.91971654]
[1755630882240,2.9,176.15,176.07,147.84]
[1755630883643,2.9,176.15,176.04,149.44380197]
[1755630883839,2.9,176.13,176.04,149.44380197]
[1755630885044,2.9,176.13,176.05,1.18]
[1755630885544,2.9,176.17,176.09,4.91971654]
[1755630885745,2.9,176.17,176.07,1.18]
[1755630885939,2.9,176.17,176.09,4.91971654]
[1755630887348,2.9,176.17,176.09,6.09971654]
[1755630889143,2.9,176.23,176.11,1.18]
[1755630889345,2.9,176.23,176.15,4.91971654]
[1755630889548,4.03780918,176.22,176.11,147.76]
[1755630889751,6.93775384,176.21,176.11,147.76]
[1755630889946,2.9,176.2,176.11,147.76]
[1755630890252,2.9,176.2,176.12,4.91971654]
[1755630890448,22.64,176.24,176.16,1.18]
[1755630890746,22.64,176.24,176.16,6.8568]
[1755630891048,22.64,176.24,176.16,1.18]
[1755630891248,22.64,176.24,176.17,5.6764]
[1755630891450,22.64,176.24,176.18,4.91971654]
[1755630892152,19.74,176.24,176.18,4.91971654]
[1755630892338,19.74,176.24,176.21,4.91971654]
[1755630892545,19.74,176.24,176.22,1.19]
[1755630892745,2.9,176.31,176.21,6.10971654]
[1755630892945,2.9,176.31,176.24,4.91971654]
[1755630893742,2.9,176.31,176.24,6.10971654]
[1755630894754,2.9,176.31,176.25,4.91971654]
[1755630896547,2.9,176.31,176.22,4.91971654]
[1755630897548,2.9,176.31,176.21,4.91971654]
[1755630898355,2.9,176.31,176.2,6.10971654]
[1755630899253,3.04,176.29,176.18,4.91971654]
[1755630899851,3.04,176.29,176.17,152.1765]
[1755630900050,4.07724599,176.28,176.19,4.91971654]
[1755630900250,3.04,176.29,176.16,6.09971654]
[1755630900251,7.95971654,176.29,176.16,6.09971654]
[1755630900457,3.04,176.27,176.16,6.09971654]
[1755630900656,3.04,176.25,176.19,4.91971654]
[1755630900852,3.04,176.29,176.22,4.91971654]
[1755630901651,3.04,176.27,176.19,6.09971654]
[1755630901853,3.04,176.27,176.19,1.18]
[1755630902050,3.04,176.25,176.14,1.18]
[1755630902751,3.04,176.25,176.12,381.56]
[1755630902752,3.04,176.25,176.16,1.18]
[1755630904153,3.04,176.25,176.13,6.8577]
[1755630904362,4.07618029,176.24,176.13,1.18]
[1755630904653,3.04,176.23,176.13,1.18]
[1755630904856,3.04,176.23,176.13,6.8576]
[1755630905058,3.04,176.23,176.13,1.18]
[1755630906358,3.04,176.23,176.14,5.6772]
[1755630906554,3.04,176.23,176.14,1.18]
[1755630906759,3.04,176.31,176.16,6.8565]
[1755630907061,3.04,176.29,176.16,6.8565]
[1755630907256,4.07515269,176.28,176.16,6.8565]
[1755630907455,7.11515269,176.27,176.17,5.6765]
[1755630907757,3.04,176.27,176.17,5.6765]
[1755630907958,3.04,176.27,176.16,6.8568]
[1755630908458,3.04,176.27,176.16,1.18]
[1755630908662,3.04,176.25,176.12,382.74]
[1755630908849,3.04,176.25,176.13,1.18]
[1755630910557,3.04,176.25,176.14,5.6774]
[1755630910861,3.04,176.25,176.13,1.18]
[1755630911058,3.04,176.25,176.14,5.6773]
[1755630911564,3.04,176.25,176.13,1.18]
[1755630911760,3.04,176.25,176.14,7.65569516]
[1755630911963,3.04,176.25,176.15,1.18]
[1755630914959,3.04,176.23,176.12,146.4]
[1755630916161,4.07648522,176.22,176.12,146.4]
[1755630916356,3.04,176.21,176.12,146.4]
[1755630917367,3.04,176.21,176.07,1.18]
[1755630917562,3.04,176.19,176.07,1.18]
[1755630917764,4.07515375,176.18,176.07,1.18]
[1755630917962,3.04,176.17,176.07,1.18]
[1755630919662,3.04,176.17,176.07,6.8594]
[1755630919867,3.04,176.17,176.07,1.18]
[1755630920563,3.04,176.17,176.07,8.83569516]
[1755630920762,3.04,176.21,176.12,5.6779]
[1755630920963,3.04,176.21,176.12,6.8579]
[1755630921371,3.04,176.21,176.12,1.18]
[1755630923664,3.04,176.21,176.12,147.5]
[1755630923864,3.04,176.21,176.14,5.6773]
[1755630924173,3.04,176.21,176.13,1.18]
[1755630924570,3.04,176.21,176.11,7.65569516]
[1755630925064,3.04,176.21,176.09,147.5]
[1755630925065,3.04,176.21,176.1,5.6787]
[1755630925273,3.04,176.21,176.09,147.5]
[1755630925772,3.04,176.21,176.1,5.6787]
[1755630926369,3.04,176.21,176.12,1.18]
[1755630927674,381.48,176.27,176.12,1.18]
[1755630927873,3.04,176.25,176.12,1.18]
[1755630928067,4.06742116,176.24,176.12,1.18]
[1755630928271,3.04,176.25,176.15,5.6769]
[1755630928465,4.06809495,176.24,176.15,6.8669]
[1755630928674,3.04,176.25,176.15,1.19]
[1755630928875,3.04,176.25,176.15,6.867]
[1755630929178,3.04,176.25,176.15,1.19]
[1755630929375,3.16,176.23,176.15,1.19]
[1755630929976,3.16,176.23,176.11,8.84569516]
[1755630930476,3.16,176.23,176.12,6.8679]
[1755630930678,3.16,176.23,176.12,1.19]
[1755630931779,3.16,176.23,176.12,6.868]
[1755630932474,3.16,176.23,176.13,4.92189343]
[1755630932682,3.16,176.23,176.16,4.92189343]
[1755630932876,3.16,176.23,176.16,6.11189343]
[1755630933280,3.16,176.23,176.16,1.19]
[1755630934075,3.16,176.23,176.15,4.92189343]
[1755630934283,3.16,176.23,176.16,1.19]
[1755630934777,3.16,176.23,176.16,6.8666]
[1755630935477,3.16,176.23,176.16,1.19]
[1755630937380,3.16,176.23,176.12,6.11189343]
[1755630937684,3.16,176.19,176.07,1.19]
[1755630937983,3.16,176.17,176.07,1.19]
[1755630939281,3.16,176.15,176.04,149.44380197]
[1755630939583,3.16,176.15,176.03,1.19]
[1755630939780,3.16,176.13,176.03,1.19]
[1755630940485,3.16,176.11,176.0,147.37]
[1755630940785,3.16,176.09,176.0,1.19]
[1755630942084,0.0364693,176.06,176.02,1.19]
[1755630942280,0.0364693,176.06,175.97,1.19]
[1755630942485,3.16,176.05,175.97,1.19]
[1755630943890,0.0364693,176.06,175.97,1.19]
[1755630944485,0.0364693,176.06,175.99,1.19]
[1755630944885,3.16,176.08,175.99,1.19]
[1755630945998,3.19657905,176.05,175.94,1.19]
[1755630946599,3.16,176.1,175.98,1.19]
[1755630946990,3.16,176.1,175.98,6.8725]
[1755630947195,0.03573572,176.06,175.98,6.8725]
[1755630947495,0.03573572,176.06,175.99,1.19]
[1755630947697,0.03573572,176.06,176.01,5.6816]
[1755630948397,0.03573572,176.06,176.04,1.19]
[1755630948594,0.03573572,176.06,176.05,1.19]
[1755630948887,3.16,176.14,176.05,1.19]
[1755630949092,3.16,176.14,176.05,6.8704]
[1755630949293,3.16,176.14,176.05,1.19]
[1755630949686,3.16,176.14,176.02,1.19]
[1755630949884,3.16,176.12,176.02,1.19]
[1755630950085,3.16,176.1,175.98,1.19]
[1755630950891,3.16,176.1,175.98,6.8725]
[1755630951398,3.16,176.1,175.98,1.19]
[1755630951596,3.16,176.1,176.02,1.19]
[1755630952593,3.16,176.14,176.02,1.19]
[1755630952792,3.16,176.14,176.05,1.19]
[1755630953088,3.16,176.14,176.05,6.8702]
[1755630953295,3.16,176.14,176.05,1.19]
[1755630953496,3.16,176.12,176.02,7.66272716]
[1755630953695,3.16,176.12,176.01,1.19]
[1755630955598,3.16,176.1,175.98,381.74]
[1755630956896,3.16,176.1,175.99,1.19]
[1755630957391,3.16,176.1,176.02,1.19]
[1755630958694,13.79553671,176.2,176.02,1.19]
[1755630958993,2.94,176.14,176.02,1.19]
[1755630959194,2.94,176.14,176.04,5.6805]
[1755630959495,2.94,176.14,176.05,1.19]
[1755630960490,2.94,176.14,176.05,6.8703]
[1755630960691,2.94,176.2,176.09,7.66272716]
[1755630960891,2.94,176.2,176.1,1.19]
[1755630961601,2.94,176.2,176.13,1.19]
[1755630962102,2.94,176.24,176.13,1.19]
[1755630962399,2.94,176.24,176.14,1.19]
[1755630962802,2.94,176.24,176.17,0.03674804]
[1755630966501,4.05913914,176.23,176.17,0.03674804]
[1755630966801,2.94,176.26,176.17,0.03674804]
[1755630966994,2.94,176.24,176.17,0.03674804]
[1755630967303,2.97905729,176.22,176.09,1.19]
[1755630967495,4.05948227,176.21,176.09,1.19]
[1755630967800,2.94,176.2,176.09,1.19]
[1755630968403,0.04095695,176.16,176.05,1.23]
[1755630968598,2.94,176.15,176.05,1.23]
[1755630969303,0.04325461,176.12,176.05,1.23]
[1755630969900,2.98325461,176.12,176.05,1.23]
[1755630970096,2.98325461,176.12,176.01,6.9115]
[1755630970300,2.98325461,176.12,176.01,1.23]
[1755630970494,2.94,176.12,176.01,1.23]
[1755630971003,0.03675342,176.08,176.01,1.23]
[1755630973104,0.03675342,176.08,175.98,381.74]
[1755630973309,2.94,176.07,175.98,381.74]
[1755630973708,2.94,176.07,175.97,1.23]
[1755630974108,0.03882233,176.04,175.97,1.23]
[1755630974310,2.97882233,176.04,175.92,5.6845]
[1755630974502,2.97882233,176.04,175.92,1.23]
[1755630974703,10.60272716,176.04,175.92,1.23]
[1755630974910,2.94,176.03,175.89,146.02]
[1755630975212,2.98313779,176.0,175.89,146.02]
[1755630975416,2.98313779,176.0,175.9,5.6851]
[1755630975609,202.8855883,176.02,175.9,1.23]
[1755630976115,0.04176088,175.97,175.9,1.23]
[1755630976308,0.04176088,175.97,175.9,8.89272716]
[1755630976508,0.04176088,175.97,175.93,1.23]
[1755630976705,0.04176088,175.97,175.95,1.23]
[1755630976908,0.04176088,175.97,175.96,1.23]
[1755630977613,0.04176088,175.97,175.93,1.23]
[1755630977813,0.04176088,175.97,175.95,1.23]
[1755630978014,0.04176088,175.97,175.9,7.66272716]
[1755630978312,0.04176088,175.97,175.91,1.23]
[1755630979111,0.04176088,175.97,175.92,5.6845]
[1755630979321,0.04176088,175.97,175.89,147.00907189]
[1755630979518,0.04176088,175.97,175.89,147.25]
[1755630979815,0.04176088,175.97,175.91,1.23]
[1755630980218,0.04176088,175.97,175.92,5.6843]
[1755630980419,0.04176088,175.97,175.94,7.66272716]
[1755630980716,0.04176088,175.97,175.91,1.23]
[1755630981311,0.04176088,175.97,175.94,1.23]
[1755630981608,0.04176088,175.97,175.95,1.23]
[1755630981913,0.04176088,175.97,175.96,1.23]
[1755630982104,202.8855883,176.02,175.96,1.23]
[1755630982307,202.8855883,176.02,175.98,1.23]
[1755630982711,202.8855883,176.02,175.95,7.66272716]
[1755630983115,202.8855883,176.02,175.96,1.23]
[1755630983617,202.8855883,176.02,175.99,1.23]
[1755630984014,202.8855883,176.02,176.0,1.23]
[1755630984621,2.94,176.09,176.0,1.23]
[1755630985418,4.05705327,176.08,175.91,7.66272716]
[1755630985619,2.98193729,176.06,175.91,147.33]
[1755630985817,2.94,176.04,175.95,1.27]
[1755630986018,2.94,176.04,175.91,147.33]
[1755630986819,0.03626184,175.99,175.95,1.27]
[1755630987116,0.03626184,175.99,175.97,1.27]
[1755630987516,0.03626184,175.99,175.94,8.93272716]
[1755630987718,0.03626184,175.99,175.94,7.66272716]
[1755630987914,0.03626184,175.99,175.96,1.27]
[1755630988217,2.97,176.09,175.98,7.66272716]
[1755630988427,2.97,176.09,175.99,1.27]
[1755630988920,2.97,176.09,175.99,147.33]
[1755630989115,2.97,176.09,176.02,5.6811]
[1755630989812,2.97,176.09,175.99,147.33]
[1755630990523,2.97,176.09,176.02,7.66272716]
[1755630990824,2.97,176.09,176.02,13.34382716]
[1755630992028,2.97,176.09,176.02,7.66272716]
[1755630992324,2.97,176.14,176.03,1.28]
[1755630992722,2.97,176.14,176.06,7.66272716]
[1755630992917,2.97,176.14,176.06,5.6798]
[1755630994225,2.97,176.14,176.05,8.94272716]
[1755630994620,381.64,176.19,176.08,5.6791]
[1755630994621,2.97,176.18,176.08,5.6791]
[1755630994921,4.05360344,176.17,176.08,5.6791]
[1755630995119,2.97,176.18,176.07,5.6795]
[1755630995324,2.97,176.18,176.09,7.66272716]
[1755630995919,2.97,176.18,176.06,1.28]
[1755630996122,4.05344037,176.17,176.06,1.28]
[1755630996321,2.97,176.16,176.06,1.28]
[1755630998528,2.97,176.16,176.06,6.96]
[1755630998729,2.97,176.16,176.06,1.28]
[1755630999022,2.97,176.16,176.09,1.28]
[1755630999822,2.97,176.16,176.08,7.66272716]
[1755631000725,2.97,176.16,176.08,8.94272716]
[1755631002126,2.97,176.23,176.08,7.66272716]
[1755631002321,4.05579719,176.22,176.11,1.28]
[1755631002525,2.97,176.23,176.11,1.28]
[1755631002725,4.05608413,176.22,176.12,7.66272716]
[1755631003024,2.97,176.26,176.11,1.28]
[1755631003228,2.97,176.24,176.11,1.28]
[1755631003433,2.97,176.22,176.11,1.28]
[1755631004732,2.97,176.22,176.15,0.03683162]
[1755631006530,2.97,176.2,176.15,0.03683162]
[1755631006830,4.05300279,176.19,176.15,0.03683162]
[1755631007028,2.97,176.17,176.07,1.28]
[1755631009429,2.97,176.17,176.07,6.9597]
[1755631009829,2.97,176.21,176.07,1.28]
[1755631010037,2.97,176.19,176.07,1.28]
[1755631010533,2.97,176.19,176.07,6.9595]
[1755631010733,2.97,176.19,176.11,0.03825772]
[1755631012135,4.05888248,176.18,176.11,0.03825772]
[1755631012333,2.97,176.17,176.11,0.03825772]
[1755631012725,2.97,176.17,176.06,14.62272716]
[1755631012726,2.97,176.17,176.08,5.6792]
[1755631012931,2.97,176.17,176.07,1.28]
[1755631013328,2.97,176.2,176.1,1.28]
[1755631014238,2.97,176.2,176.11,1.28]
[1755631014433,348.39628481,176.27,176.11,1.28]
[1755631014729,2.97,176.24,176.15,1.28]
[1755631015527,4.05584345,176.23,176.11,1.28]
[1755631015725,7.02576715,176.22,176.11,1.28]
[1755631015923,2.97,176.22,176.11,1.28]
[1755631017428,2.97,176.22,176.08,7.66272716]
[1755631017628,2.97,176.2,176.08,7.66272716]
[1755631017828,2.97,176.2,176.1,5.6787]
[1755631018023,2.97,176.2,176.08,7.66272716]
[1755631018223,2.97,176.2,176.05,1.28]
[1755631018424,2.89,176.18,176.05,6.9601]
[1755631018729,2.89,176.18,176.05,1.28]
[1755631019128,2.89,176.18,176.06,5.68]
[1755631019730,2.89,176.18,176.05,1.28]
[1755631020037,2.89,176.16,176.05,1.28]
[1755631021024,2.89,176.16,176.06,1.27]
[1755631021433,2.89,176.16,176.08,5.6794]
[1755631021634,2.89,176.16,176.09,1.27]
[1755631023136,2.89,176.16,176.03,1.27]
[1755631024841,4.05440914,176.15,176.03,1.27]
[1755631025036,2.89,176.14,176.03,1.27]
[1755631025233,2.89,176.14,176.03,6.951]
[1755631025736,2.89,176.14,176.04,5.6807]
[1755631026340,2.89,176.14,176.05,5.6802]
[1755631028332,2.89,176.14,176.03,6.951]
[1755631028538,4.06074121,176.13,176.03,1.27]
[1755631028736,6.95074121,176.12,176.01,145.92]
[1755631028932,2.89,176.12,176.01,151.6015]
[1755631030338,2.89,176.12,176.02,1.27]
[1755631030937,2.89,176.12,176.02,6.9513]
[1755631032432,2.89,176.1,176.01,145.92]
[1755631033940,2.89,176.1,176.0,1.27]
[1755631034141,4.0674943,176.09,176.0,1.27]
[1755631034442,2.89,176.1,176.0,1.27]
[1755631034646,4.0673232,176.09,176.0,1.27]
[1755631034840,2.89,176.1,176.0,1.27]
[1755631035148,4.0673232,176.09,176.0,1.27]
[1755631035440,2.89,176.1,176.0,1.27]
[1755631036143,4.06727367,176.09,176.0,1.27]
[1755631036443,2.89,176.1,176.0,1.27]
[1755631036644,4.0668858,176.09,176.0,1.27]
[1755631036844,2.89,176.1,176.0,1.27]
[1755631037045,4.0668764,176.09,176.0,1.27]
[1755631037345,6.95539036,176.08,175.96,147.21]
[1755631037538,4.06539036,176.07,175.96,147.21]
[1755631037744,2.89,176.12,175.99,1.27]
[1755631037945,4.06608688,176.11,175.99,1.27]
[1755631038138,4.06608688,176.1,175.99,1.27]
[1755631038338,2.89,176.12,176.01,5.6815]
[1755631038543,4.06545096,176.11,176.01,5.6815]
[1755631038745,4.06545096,176.1,175.99,1.27]
[1755631038943,2.89,176.12,176.01,5.6817]
[1755631039247,4.06544978,176.11,175.98,7.66272716]
[1755631039446,2.89,176.12,176.04,1.27]
[1755631041441,4.06478937,176.11,176.06,0.03653362]
[1755631041647,2.89,176.09,175.99,1.27]
[1755631041839,2.93222349,176.09,175.99,1.27]
[1755631042040,2.89,176.07,175.95,383.06]
[1755631042242,2.89,176.05,175.95,383.06]
[1755631043053,0.04349859,176.02,175.96,5.6833]
[1755631043247,0.04349859,176.02,175.95,383.06]
[1755631043543,0.04349859,176.02,175.95,381.76]
[1755631043748,0.04349859,176.02,175.96,1.3]
[1755631044255,0.04349859,176.02,176.01,1.3]
[1755631044646,2.89,176.13,176.01,1.86]
[1755631044846,2.89,176.13,176.03,5.681]
[1755631045751,2.89,176.13,176.04,5.6807]
[1755631045951,2.89,176.13,176.06,0.04107518]
[1755631047450,2.89,176.13,176.06,5.72117518]
[1755631048851,381.72,176.19,176.07,1.27]
[1755631048852,3.14,176.18,176.07,1.27]
[1755631049452,3.14,176.18,176.09,5.6791]
[1755631049750,3.14,176.18,176.11,0.04034272]
[1755631050446,3.14,176.16,176.11,0.04034272]
[1755631050652,3.14,176.18,176.11,0.04034272]
[1755631050847,4.0864098,176.17,176.11,0.04034272]
[1755631051045,381.72,176.19,176.11,0.04034272]
[1755631051046,3.14,176.15,176.11,0.04034272]
[1755631051354,3.14,176.14,176.11,0.04034272]
[1755631051549,3.14,176.18,176.11,0.04034272]
[1755631051754,4.08667431,176.17,176.11,0.04034272]
[1755631051955,3.14,176.18,176.11,0.04034272]
[1755631053755,4.08490265,176.17,176.11,0.04034272]
[1755631053954,3.14,176.15,176.11,0.04034272]
[1755631054154,189.36913596,176.19,176.11,0.04034272]
[1755631054453,3.14,176.13,176.11,0.04034272]
[1755631054953,3.14,176.18,176.11,0.04034272]
[1755631055155,4.08451169,176.17,176.11,0.04034272]
[1755631055356,3.14,176.18,176.11,0.04034272]
[1755631056953,189.36913596,176.19,176.12,1.27]
[1755631057154,3.14,176.21,176.14,5.6773]
[1755631057356,3.14,176.21,176.12,1.27]
[1755631057856,3.14,176.21,176.15,0.03920412]
[1755631058757,145.88,176.24,176.16,1.27]
[1755631059348,3.14,176.25,176.16,1.27]
[1755631059550,3.14,176.23,176.15,0.03920412]
[1755631059750,4.08300928,176.22,176.15,0.03920412]
[1755631059953,4.08250668,176.21,176.11,1.27]
[1755631060156,3.14,176.23,176.17,0.03723785]
[1755631060354,389.40272716,176.27,176.17,0.03723785]
[1755631060355,4.08131831,176.22,176.17,0.03723785]
[1755631060560,389.40272716,176.27,176.17,0.03723785]
[1755631060860,3.14,176.25,176.17,0.03723785]
[1755631061056,4.0823502,176.24,176.17,0.03723785]
[1755631061258,3.14,176.23,176.17,0.03723785]
[1755631061455,4.08117715,176.22,176.17,0.03723785]
[1755631061658,3.14,176.26,176.17,0.03723785]
[1755631061861,3.14,176.24,176.17,0.03723785]
[1755631062064,4.08120248,176.23,176.17,0.03723785]
[1755631062662,7.22094177,176.22,176.17,0.03723785]
[1755631062863,3.14,176.21,176.17,0.03723785]
[1755631063558,3.14,176.26,176.17,0.03723785]
[1755631063757,3.14,176.24,176.17,0.03723785]
[1755631063963,4.07960219,176.23,176.17,0.03723785]
[1755631064258,3.14,176.2,176.17,0.03723785]
[1755631064465,3.14,176.26,176.17,0.03723785]
[1755631064768,3.14,176.24,176.07,382.93]
[1755631064967,3.14,176.2,176.07,382.93]
[1755631065462,4.07806857,176.19,176.07,388.6096]
[1755631065662,3.14,176.2,176.07,382.93]
[1755631065865,3.14,176.18,176.07,382.93]
[1755631066168,0.04027121,176.15,176.07,382.93]
[1755631066663,0.04027121,176.15,176.08,1.31]
[1755631066866,0.04027121,176.15,176.08,8.97272716]
[1755631067066,0.04027121,176.15,176.09,1.31]
[1755631067662,0.04027121,176.15,176.13,1.31]
[1755631067867,204.67133491,176.22,176.13,1.31]
[1755631068068,3.14,176.25,176.13,1.31]
[1755631068264,3.14,176.25,176.17,1.27]
[1755631068765,3.14,176.29,176.17,1.27]
[1755631069171,3.14,176.29,176.19,0.04064067]
[1755631070061,3.14,176.27,176.19,0.04064067]
[1755631070264,3.14,176.25,176.19,0.04064067]
[1755631070471,3.14,176.23,176.13,1.27]
[1755631070960,3.14,176.22,176.2,0.0360271]
[1755631071166,3.14,176.21,176.1,289.10694239]
[1755631072070,3.14,176.19,176.1,289.10694239]
[1755631072680,3.14,176.19,176.1,294.78524239]
[1755631073471,3.14,176.19,176.11,6.9783]
[1755631073667,3.14,176.19,176.11,1.3]
[1755631076370,3.14,176.24,176.11,1.3]
[1755631077071,3.14,176.24,176.14,1.3]